lending/lending_fUSD_20250819
["ID","MTS","AMOUNT","RATE_DAILY","PERIOD"]
[380288776,1755636333905,-2742.75760015,0.00010998,2]
[380288777,1755636334138,-1000.0,0.00010999,2]
[380288778,1755636334167,-10594.99,0.00010999,2]
[380288779,1755636334194,-155.209,0.00010999,2]
[380288780,1755636334223,-400.0,0.00010999,2]
[380288781,1755636334250,-125456.14905037,0.00011,2]
[380288782,1755636369233,171.731342,7.945e-05,2]
[380288788,1755636402890,1488.4973149,9.5e-06,2]
[380288794,1755636443601,2520.09,9.495e-05,2]
[380288795,1755636458016,1027.04,9.458e-05,2]
[380288796,1755636470089,162.15,7.576e-05,2]
[380288797,1755636470369,162.15,8.333e-05,2]
[380288798,1755636470619,162.15,9.091e-05,2]
[380288799,1755636477220,4525.47,9.47e-05,2]
[380288800,1755636512830,4440.37,9.476e-05,2]
[380288801,1755636550949,25844.26,9.455e-05,2]
[380288804,1755636598945,1207.72,9.44e-05,2]
[380288805,1755636628215,250.0,9.432e-05,2]
[380288809,1755636632133,-2147.72,9.508e-05,2]
[380288810,1755636632143,-211.07,9.513e-05,2]
[380288811,1755636632153,-175.6263796,9.513e-05,2]
[380288812,1755636632162,-223.57,9.674e-05,2]
[380288813,1755636632172,-170.0,9.836e-05,7]
[380288814,1755636632181,-1412.163406,9.838e-05,2]
[380288815,1755636632190,-162.15,9.848e-05,2]
[380288816,1755636632199,-150.0,9.888e-05,2]
[380288817,1755636632211,-1011.1598,9.936e-05,2]
[380288818,1755636632220,-500.0,9.936e-05,2]
[380288819,1755636632229,-1214.82,0.0001016,2]
[380288820,1755636632239,-1214.82,0.00010168,2]
[380288821,1755636632248,-1214.82,0.00010175,2]
[380288822,1755636632258,-300.0,0.00010182,2]
[380288823,1755636632268,-300.0,0.00010182,2]
[380288824,1755636632278,-1214.82,0.00010183,2]
[380288825,1755636632287,-1214.82,0.00010191,2]
[380288826,1755636632297,-1214.82,0.00010198,2]
[380288827,1755636632306,-1214.82,0.00010206,2]
[380288828,1755636632316,-1214.82,0.00010213,2]
[380288829,1755636632325,-1101.86018779,0.00010221,2]
[380288830,1755636632337,-112.95981221,0.00010221,2]
[380288831,1755636632346,-1214.82,0.00010228,2]
[380288832,1755636632355,-1214.82,0.00010236,2]
[380288833,1755636632365,-1214.82,0.00010244,2]
[380288834,1755636632375,-1214.82,0.00010251,2]
[380288835,1755636632384,-150.0,0.00010254,2]
[380288836,1755636632393,-1214.82,0.00010259,2]
[380288837,1755636632404,-320.0,0.00010263,2]
[380288838,1755636632413,-1195.0,0.00010263,2]
[380288839,1755636632423,-168.0,0.00010263,2]
[380288840,1755636632433,-1214.82,0.00010266,2]
[380288841,1755636632444,-1214.82,0.00010274,2]
[380288842,1755636632453,-1214.82,0.00010282,2]
[380288843,1755636632464,-1214.82,0.00010289,2]
[380288844,1755636632474,-1214.82,0.00010297,2]
[380288846,1755636632483,-150.0,0.00010297,2]
[380288847,1755636632493,-1214.82,0.00010304,2]
[380288848,1755636632502,-315.0,0.00010314,2]
[380288849,1755636632512,-250.0,0.00010464,2]
[380288850,1755636632521,-2000.0,0.00010464,2]
[380288852,1755636632532,-162.15,0.00010606,2]
[380288854,1755636632541,-150.0,0.0001062,2]
[380288856,1755636632551,-676.59,0.0001063,2]
[380288858,1755636632560,-1000.0,0.00010859,2]
[380288860,1755636632570,-2500.0,0.00010859,2]
[380288862,1755636632579,-23240.99503865,0.00010859,2]
[380288864,1755636632591,-2267.12776135,0.00010859,2]
[380288866,1755636632600,-1085.20011,0.0001089,2]
[380288868,1755636632610,-12518.45838664,0.000109,2]
[380288871,1755636632621,-914.4899805,0.000109,2]
[380288873,1755636632633,-310.07538915,0.000109,2]
[380288878,1755636632669,-3132.55169498,0.000109,2]
[380288884,1755636632713,-3098.70086583,0.000109,2]
[380288887,1755636632740,-1579.35392884,0.000109,2]
[380288890,1755636632751,-1648.59611148,0.000109,2]
[380288892,1755636632763,-656.7284898,0.000109,2]
[380288899,1755636632840,-808.58476644,0.000109,2]
[380288900,1755636632850,-455.8107763,0.000109,2]
[380288901,1755636632915,-1861.69811004,0.000109,2]
[380288902,1755636632925,-202.07121222,0.000109,2]
[380288903,1755636632935,-202.3864034,0.00010986,2]
[380288904,1755636632946,-40.82646612,0.00010986,2]
[380288905,1755636632955,-300.0,0.00010993,2]
[380288906,1755636632965,-1.07093408,0.00010993,2]
[380288907,1755636632977,-198.92906592,0.00010993,2]
[380288908,1755636632986,-151.0,0.00010993,2]
[380288909,1755636632995,-247.74913269,0.00010993,2]
[380288910,1755636633004,-160.0,0.00010993,2]
[380288911,1755636633014,-151.0,0.00010993,2]
[380288912,1755636633023,-151.0,0.00010993,2]
[380288913,1755636633033,-151.0,0.00010993,2]
[380288914,1755636633043,-151.0,0.00010993,2]
[380288915,1755636633052,-151.0,0.00010993,2]
[380288916,1755636633062,-151.0,0.00010993,2]
[380288917,1755636633071,-151.0,0.00010993,2]
[380288918,1755636633081,-151.0,0.00010993,2]
[380288919,1755636633090,-151.0,0.00010993,2]
[380288920,1755636633100,-151.0,0.00010993,2]
[380288921,1755636633110,-151.0,0.00010993,2]
[380288922,1755636633119,-277.35679052,0.00010993,2]
[380288923,1755636633129,-500.0,0.00010993,2]
[380288924,1755636633139,-176.50660503,0.00010993,2]
[380288925,1755636633148,-218736.18995297,0.00011,2]
[380288926,1755636633160,-130699.07615888,0.00011,2]
[380288927,1755636633171,-720.48845334,0.00011,2]
[380288929,1755636638185,-256.46990979,0.00010303,2]
[380288930,1755636638195,-200.34998451,0.00010303,2]
[380288931,1755636638205,-698.9688117,0.00011,2]
[380288932,1755636638217,-653.75513152,0.00011,2]
[380288933,1755636638229,-1161.56001405,0.00011,2]
[380288934,1755636638240,-1085.03796839,0.00011,2]
[380288935,1755636638291,-4218002.83640691,0.00011,2]
[380288936,1755636638300,-15829.76,0.00011,2]
[380288937,1755636638309,-4088858.24003982,0.00011,2]
[380288938,1755636638320,-2311.16,0.00011,2]
[380288939,1755636638332,-3139.38137725,0.00011,2]
[380288940,1755636638343,-986.97955894,0.00011,2]
[380288941,1755636638366,-15314.74523887,0.00011,2]
[380288944,1755636638377,-138648.8541085,0.00011,2]
[380288946,1755636638406,-313.93125095,0.00011,2]
[380288947,1755636638524,-6661.54687367,0.00011,2]
[380288954,1755636638584,169.9,9.432e-05,2]
[380289130,1755636640107,-169.9,0.00010375,2]
[380289132,1755636640117,-25839.56708166,0.00011,2]
[380289134,1755636640129,-323.61065012,0.00011,2]
[380289150,1755636640219,-11369.0,0.00011,2]
[380289172,1755636640330,-500.0,0.00011,2]
[380289177,1755636640342,-7958.5,0.00011,2]
[380289179,1755636640354,-4414.49319842,0.00011,2]
[380289181,1755636640365,-5853.0,0.00011,2]
[380289335,1755636641936,-1207.02608116,0.00011,2]
[380289337,1755636641947,-853.86922575,0.00011,2]
[380289339,1755636641958,-4184.646,0.00011,2]
[380289375,1755636642283,-1396.92102563,0.00011,2]
[380289454,1755636643845,-7132.85199997,0.00011,2]
[380289455,1755636643896,-276.48170304,0.00011,2]
[380289464,1755636647299,-500.0,9.575e-05,2]
[380289465,1755636647310,-266.0,0.00010147,2]
[380289466,1755636647320,-414.8965998,0.00010198,2]
[380289467,1755636647332,-954.1034002,0.00010198,2]
[380289468,1755636647342,-103.4382783,0.00011,2]
[380289469,1755636647357,-232253.00198109,0.00011,2]
[380289470,1755636647516,-8483.56852767,0.00011,2]
[380289471,1755636647528,-5667.28508308,0.00011,2]
[380289472,1755636664990,222.5,9.56e-06,2]
[380289473,1755636816274,500.0,9.413e-05,2]
[380289474,1755636877256,301.0,8.789e-05,3]
[380289477,1755637416059,6191.77,9.438e-05,2]
[380289479,1755637632176,1260.04,9.446e-05,2]
[380289480,1755637640602,414.97,9.467e-05,2]
[380289483,1755637667731,585.23,9.494e-05,2]
[380289486,1755637683411,162.15,7.544e-05,2]
[380289487,1755637705839,6317.89,9.392e-05,2]
[380289488,1755637720716,150.0,9e-05,2]
[380289489,1755637757271,325.7801166,0.000221,120]
[380289509,1755637779569,1187.49,9.296e-05,2]
[380289544,1755637833049,-331.89658474,9.517e-05,2]
[380289549,1755637833092,-668.10341526,9.517e-05,2]
[380289551,1755637833102,-213.26028519,9.6e-05,2]
[380289553,1755637833112,-1852.42,9.603e-05,2]
[380289556,1755637833122,-614.75,9.629e-05,2]
[380289558,1755637833131,-500.0,9.738e-05,2]
[380289560,1755637833141,-4681.17811131,9.828e-05,2]
[380289565,1755637833179,-625.19937617,9.828e-05,2]
[380289595,1755637837091,1141.06,9.287e-05,2]
[380289596,1755637838345,-860.57467205,9.828e-05,2]
[380289597,1755637838356,-504.81784047,9.828e-05,2]
[380289598,1755637838366,-170.0,9.836e-05,7]
[380289599,1755637838375,-2997.15,9.878e-05,2]
[380289600,1755637838384,-179.52893685,9.93e-05,2]
[380289601,1755637838394,-11446.41,9.931e-05,2]
[380289602,1755637838403,-250.0,9.95e-05,2]
[380289603,1755637838412,-1949.0,9.959e-05,2]
[380289604,1755637838421,-1107.17,9.99e-05,2]
[380289605,1755637838431,-14157.77,9.99e-05,2]
[380289606,1755637838440,-253.0,9.996e-05,2]
[380289607,1755637838449,-247.74913269,0.0001,2]
[380289608,1755637838458,-198.92906592,0.0001,2]
[380289609,1755637838467,-500.0,0.0001,2]
[380289610,1755637838476,-151.0,0.0001,2]
[380289611,1755637838486,-151.0,0.0001,2]
[380289613,1755637838495,-151.0,0.0001,2]
[380289615,1755637838505,-151.0,0.0001,2]
[380289617,1755637838514,-151.0,0.0001,2]
[380289619,1755637838524,-151.0,0.0001,2]
[380289621,1755637838534,-151.0,0.0001,2]
[380289623,1755637838543,-151.0,0.0001,2]
[380289625,1755637838552,-176.50660503,0.0001,2]
[380289627,1755637838561,-151.0,0.0001,2]
[380289629,1755637838571,-151.0,0.0001,2]
[380289631,1755637838581,-151.0,0.0001,2]
[380289633,1755637838591,-151.0,0.0001,2]
[380289635,1755637838600,-597.0,0.00010009,2]
[380289637,1755637838610,-1830.47,0.00010024,2]
[380289639,1755637838619,-1000.0,0.00010037,2]
[380289641,1755637838628,-200.0,0.00010037,2]
[380289643,1755637838638,-500.0,0.00010055,2]
[380289645,1755637838647,-237.0,0.00010082,2]
[380289647,1755637838656,-2398.0695,0.00010082,2]
[380289649,1755637838666,-222.22,0.00010103,2]
[380289651,1755637838675,-500.0,0.0001011,2]
[380289653,1755637838684,-500.0,0.00010165,2]
[380289655,1755637838693,-150.0,0.0001018,2]
[380289657,1755637838702,-500.0,0.0001022,2]
[380289659,1755637838712,-200.0,0.00010246,2]
[380289661,1755637838721,-500.0,0.00010275,2]
[380289663,1755637838730,-543.46,0.00010276,2]
[380289665,1755637838739,-500.0,0.0001033,2]
[380289667,1755637838748,-168.62,0.00010345,2]
[380289669,1755637838757,-595.0,0.00010384,2]
[380289671,1755637838767,-250.0,0.00010468,2]
[380289673,1755637838776,-1000.0,0.00010706,2]
[380289676,1755637838787,-2500.0,0.000109,2]
[380289678,1755637838797,-2500.0,0.000109,2]
[380289679,1755637838808,-312.54651582,0.000109,2]
[380289681,1755637838821,-319.58605996,0.00010973,2]
[380289683,1755637838830,-500.0,0.00010999,2]
[380289685,1755637838840,-500.0,0.00010999,2]
[380289687,1755637838849,-500.0,0.00010999,2]
[380289689,1755637838858,-500.0,0.00010999,2]
[380289691,1755637838867,-500.0,0.00010999,2]
[380289693,1755637838876,-500.0,0.00010999,2]
[380289695,1755637838886,-500.0,0.00010999,2]
[380289697,1755637838896,-1542095.73203325,0.00011,2]
[380289699,1755637838906,-292678.81,0.00011,2]
[380289702,1755637838916,-15829.76,0.00011,2]
[380289704,1755637838927,-200.0,0.00011,2]
[380289706,1755637838937,-289.657413,0.00011,2]
[380289708,1755637838946,-991218.32526599,0.00011,2]
[380289710,1755637838955,-223.40213985,0.00011,2]
[380289712,1755637838965,-45439.0609061,0.00011,2]
[380289714,1755637838975,-2071.00009,0.00011,2]
[380289716,1755637838986,-44935.8200213,0.00011099,2]
[380289718,1755637838995,-200.0,0.0001111,2]
[380289720,1755637839004,-179.49,0.00011136,2]
[380289722,1755637839013,-1107.17,0.00011238,2]
[380289724,1755637839023,-44935.82002126,0.00011253,2]
[380289726,1755637839032,-299.99,0.00011281,2]
[380289728,1755637839041,-10075.71,0.00011281,2]
[380289730,1755637839051,-9044.06,0.00011281,2]
[380289732,1755637839061,-9999.99,0.00011281,2]
[380289734,1755637839070,-150.99,0.00011281,2]
[380289736,1755637839080,-150.99,0.00011281,2]
[380289738,1755637839089,-883.85,0.00011281,2]
[380289741,1755637839098,-150.59,0.00011315,2]
[380289743,1755637839108,-212.0,0.00011315,3]
[380289745,1755637839117,-169.9,0.00011318,2]
[380289747,1755637839127,-2071.0001,0.0001134,2]
[380289749,1755637839136,-150.0,0.0001137,2]
[380289751,1755637839145,-2751.0,0.00011507,2]
[380289753,1755637839154,-4152.0,0.00011522,2]
[380289755,1755637839164,-21497.0,0.00011522,2]
[380289757,1755637839174,-1172.0,0.00011522,2]
[380289759,1755637839183,-894.0,0.00011522,2]
[380289761,1755637839193,-10138.8249369,0.00011561,2]
[380289763,1755637839203,-854.09139076,0.00011579,2]
[380289765,1755637839212,-44935.82002126,0.00011605,2]
[380289767,1755637839221,-2262.2776319,0.00011686,2]
[380289769,1755637839230,-843.87140665,0.0001169,2]
[380289771,1755637839239,-1402.0,0.00011721,2]
[380289773,1755637839248,-175.15,0.00011756,2]
[380289775,1755637839257,-2071.0001,0.0001184,2]
[380289777,1755637839267,-1000.0,0.00011896,2]
[380289779,1755637839276,-750.8,0.00011899,2]
[380289781,1755637839285,-212.02104404,0.00011925,2]
[380289783,1755637839294,-160.0,0.00011925,2]
[380289785,1755637839303,-458.43483364,0.00011925,2]
[380289787,1755637839312,-150.0,0.00011932,2]
[380289789,1755637839321,-178.768,0.00011932,2]
[380289791,1755637839330,-2042.584,0.00011932,2]
[380289793,1755637839339,-904.0,0.00011932,2]
[380289795,1755637839348,-3371.0,0.00011932,2]
[380289797,1755637839357,-1255.0,0.00011932,2]
[380289799,1755637839367,-608.265,0.00011932,2]
[380289801,1755637839378,-1297.0,0.00011932,2]
[380289803,1755637839387,-672.91,0.00011932,2]
[380289805,1755637839396,-152.17,0.00011932,2]
[380289807,1755637839405,-44935.82002126,0.00011958,2]
[380289809,1755637839413,-95154.79992501,0.00012,2]
[380289811,1755637839422,-26060.24952738,0.00012,2]
[380289813,1755637839431,-155.0,0.00012099,2]
[380289815,1755637839440,-169.9,0.00012261,2]
[380289817,1755637839450,-44935.82002126,0.0001231,2]
[380289819,1755637839459,-2071.0001,0.0001233,2]
[380289821,1755637839468,-312.54651576,0.00012392,2]
[380289823,1755637839477,-1107.17,0.00012487,2]
[380289825,1755637839487,-150.0,0.00012488,2]
[380289827,1755637839496,-791.41825669,0.00012488,2]
[380289829,1755637839506,-1008.67032716,0.00012488,2]
[380289831,1755637839515,-1225.92239762,0.00012488,2]
[380289833,1755637839524,-1443.17446809,0.00012489,2]
[380289835,1755637839533,-1660.42653855,0.00012489,2]
[380289837,1755637839543,-1877.67860902,0.00012489,2]
[380289839,1755637839552,-2094.93067948,0.00012489,2]
[380289841,1755637839561,-2312.18274994,0.0001249,2]
[380289843,1755637839570,-2529.43482041,0.0001249,2]
[380289845,1755637839579,-301.59104201,0.000125,2]
[380289847,1755637839588,-292678.81,0.000125,2]
[380289849,1755637839597,-15829.76,0.000125,2]
[380289851,1755637839606,-150.0,0.0001255,2]
[380289853,1755637839615,-301.0,0.00012634,3]
[380289855,1755637839625,-44935.82002126,0.00012663,2]
[380289857,1755637839634,-151.0,0.00012811,2]
[380289859,1755637839643,-151.0,0.00012811,2]
[380289861,1755637839653,-151.0,0.00012811,2]
[380289863,1755637839662,-151.0,0.00012811,2]
[380289865,1755637839671,-151.0,0.00012811,2]
[380289867,1755637839681,-151.0,0.00012811,2]
[380289869,1755637839691,-221.436637,0.00012811,2]
[380289871,1755637839700,-2071.0001,0.0001284,2]
[380289873,1755637839709,-3399.80155333,0.00013,2]
[380289875,1755637839719,-44935.82002126,0.00013015,2]
[380289877,1755637839728,-151.450263,0.00013016,2]
[380289879,1755637839737,-151.0,0.00013016,2]
[380289881,1755637839746,-151.0,0.00013016,2]
[380289883,1755637839756,-211.950238,0.00013016,2]
[380289885,1755637839765,-151.0,0.00013016,2]
[380289887,1755637839775,-151.0,0.00013016,2]
[380289889,1755637839784,-151.0,0.00013016,2]
[380289891,1755637839794,-211.950238,0.00013016,2]
[380289893,1755637839803,-211.950238,0.00013016,2]
[380289896,1755637839817,-151.0,0.00013016,2]
[380289898,1755637839826,-211.950238,0.00013016,2]
[380289899,1755637839835,-203.328012,0.00013016,2]
[380289902,1755637839844,-203.328012,0.00013016,2]
[380289904,1755637839855,-203.328012,0.00013016,2]
[380289906,1755637839864,-203.328012,0.00013016,2]
[380289908,1755637839874,-280.698173,0.00013016,2]
[380289909,1755637839883,-151.0,0.00013016,2]
[380289912,1755637839893,-151.0,0.00013016,2]
[380289914,1755637839903,-151.0,0.00013016,2]
[380289915,1755637839912,-160.289918,0.00013016,2]
[380289918,1755637839922,-151.0,0.00013016,2]
[380289920,1755637839932,-151.0,0.00013016,2]
[380289921,1755637839941,-151.0,0.00013016,2]
[380289924,1755637839950,-151.0,0.00013016,2]
[380289925,1755637839959,-151.0,0.00013016,2]
[380289927,1755637839969,-153.057246,0.00013016,2]
[380289930,1755637839979,-151.0,0.00013016,2]
[380289932,1755637839988,-151.0,0.00013016,2]
[380289933,1755637839997,-151.0,0.00013016,2]
[380289935,1755637840006,-151.0,0.00013016,2]
[380289938,1755637840015,-172.446223,0.00013016,2]
[380289940,1755637840025,-151.0,0.00013016,2]
[380289942,1755637840035,-151.0,0.00013016,2]
[380289944,1755637840044,-151.0,0.00013016,2]
[380289945,1755637840053,-151.0,0.00013016,2]
[380289947,1755637840062,-151.0,0.00013016,2]
[380289949,1755637840072,-151.0,0.00013016,2]
[380289951,1755637840081,-151.0,0.00013016,2]
[380289954,1755637840091,-321.43622,0.00013016,2]
[380289956,1755637840100,-151.0,0.00013016,2]
[380289958,1755637840110,-321.43622,0.00013016,2]
[380289960,1755637840119,-321.43622,0.00013016,2]
[380289963,1755637840129,-321.43622,0.00013016,2]
[380289967,1755637840139,-352.476712,0.00013016,2]
[380289970,1755637840149,-352.476712,0.00013016,2]
[380289972,1755637840158,-352.476712,0.00013016,2]
[380289974,1755637840167,-352.476712,0.00013016,2]
[380289976,1755637840177,-211.941035,0.00013016,2]
[380289978,1755637840186,-211.941035,0.00013016,2]
[380289980,1755637840195,-211.941035,0.00013016,2]
[380289982,1755637840204,-211.941035,0.00013016,2]
[380289985,1755637840214,-468.325856,0.00013016,2]
[380289987,1755637840223,-468.325856,0.00013016,2]
[380289989,1755637840232,-468.325856,0.00013016,2]
[380289991,1755637840242,-468.325856,0.00013016,2]
[380289993,1755637840251,-818.699908,0.00013016,2]
[380289995,1755637840260,-151.0,0.00013016,2]
[380289997,1755637840269,-818.699908,0.00013016,2]
[380289999,1755637840279,-151.0,0.00013016,2]
[380290002,1755637840289,-818.699908,0.00013016,2]
[380290004,1755637840299,-151.0,0.00013016,2]
[380290006,1755637840308,-818.699908,0.00013016,2]
[380290008,1755637840317,-151.0,0.00013016,2]
[380290010,1755637840326,-151.0,0.00013016,2]
[380290012,1755637840335,-151.0,0.00013016,2]
[380290014,1755637840345,-551.065868,0.00013016,2]
[380290016,1755637840354,-551.065868,0.00013016,2]
[380290017,1755637840363,-551.065868,0.00013016,2]
[380290020,1755637840373,-551.065868,0.00013016,2]
[380290022,1755637840383,-151.0,0.00013016,2]
[380290023,1755637840392,-411.984253,0.00013016,2]
[380290025,1755637840402,-411.984253,0.00013016,2]
[380290028,1755637840411,-411.984253,0.00013016,2]
[380290030,1755637840421,-151.0,0.00013016,2]
[380290032,1755637840430,-411.984253,0.00013016,2]
[380290034,1755637840439,-263.469567,0.00013016,2]
[380290036,1755637840448,-263.469567,0.00013016,2]
[380290038,1755637840458,-263.469567,0.00013016,2]
[380290040,1755637840467,-263.469567,0.00013016,2]
[380290042,1755637840475,-151.0,0.00013016,2]
[380290044,1755637840484,-151.0,0.00013016,2]
[380290046,1755637840493,-151.0,0.00013016,2]
[380290047,1755637840502,-151.0,0.00013016,2]
[380290049,1755637840511,-151.0,0.00013016,2]
[380290051,1755637840521,-151.0,0.00013016,2]
[380290053,1755637840530,-253.941086,0.00013016,2]
[380290055,1755637840540,-151.0,0.00013016,2]
[380290057,1755637840549,-151.0,0.00013016,2]
[380290059,1755637840558,-151.0,0.00013016,2]
[380290061,1755637840567,-151.0,0.00013016,2]
[380290063,1755637840577,-151.0,0.00013016,2]
[380290065,1755637840586,-324.463709,0.00013016,2]
[380290067,1755637840595,-324.463709,0.00013016,2]
[380290069,1755637840605,-324.463709,0.00013016,2]
[380290071,1755637840614,-324.463709,0.00013016,2]
[380290073,1755637840623,-151.0,0.00013016,2]
[380290075,1755637840632,-151.0,0.00013016,2]
[380290077,1755637840641,-309.369611,0.00013016,2]
[380290079,1755637840650,-151.0,0.00013016,2]
[380290081,1755637840659,-325.171712,0.00013016,2]
[380290117,1755637840985,-309.369611,0.00013016,2]
[380290119,1755637840994,-951.594588,0.00013016,2]
[380290121,1755637841004,-325.171712,0.00013016,2]
[380290123,1755637841013,-151.0,0.00013016,2]
[380290125,1755637841022,-951.594588,0.00013016,2]
[380290127,1755637841031,-325.171712,0.00013016,2]
[380290129,1755637841041,-236.208573,0.00013016,2]
[380290131,1755637841050,-951.594588,0.00013016,2]
[380290133,1755637841060,-325.171712,0.00013016,2]
[380290136,1755637841070,-951.594588,0.00013016,2]
[380290137,1755637841079,-309.369611,0.00013016,2]
[380290140,1755637841088,-151.0,0.00013016,2]
[380290141,1755637841098,-309.369611,0.00013016,2]
[380290144,1755637841107,-175.315103,0.00013016,2]
[380290146,1755637841117,-151.0,0.00013016,2]
[380290148,1755637841126,-175.315103,0.00013016,2]
[380290149,1755637841136,-151.0,0.00013016,2]
[380290151,1755637841146,-151.0,0.00013016,2]
[380290154,1755637841155,-151.0,0.00013016,2]
[380290155,1755637841165,-151.0,0.00013016,2]
[380290157,1755637841174,-175.315103,0.00013016,2]
[380290159,1755637841183,-919.606085,0.00013016,2]
[380290161,1755637841192,-175.315103,0.00013016,2]
[380290163,1755637841202,-919.606085,0.00013016,2]
[380290165,1755637841211,-151.0,0.00013016,2]
[380290167,1755637841221,-151.0,0.00013016,2]
[380290169,1755637841231,-919.606085,0.00013016,2]
[380290170,1755637841241,-249.40441,0.00013016,2]
[380290171,1755637841250,-260.26193,0.00013016,2]
[380290172,1755637841261,-151.0,0.00013016,2]
[380290173,1755637841270,-919.606085,0.00013016,2]
[380290174,1755637841279,-151.0,0.00013016,2]
[380290175,1755637841289,-1000.0,0.00013085,2]
[380290176,1755637841298,-160.0,0.00013106,2]
[380290177,1755637841307,-277.35679052,0.00013106,2]
[380290178,1755637841317,-300.0,0.00013106,2]
[380290179,1755637841326,-202.07121221,0.00013124,2]
[380290180,1755637841337,-169.9,0.00013205,2]
[380290182,1755637841346,-151.0,0.00013219,2]
[380290184,1755637841356,-6714.570061,0.00013219,2]
[380290186,1755637841365,-6714.570061,0.00013219,2]
[380290188,1755637841374,-275.829102,0.00013219,2]
[380290190,1755637841384,-151.0,0.00013219,2]
[380290192,1755637841393,-6714.570061,0.00013219,2]
[380290194,1755637841402,-377.91897,0.00013219,2]
[380290196,1755637841411,-151.0,0.00013219,2]
[380290198,1755637841421,-275.829102,0.00013219,2]
[380290200,1755637841430,-151.0,0.00013219,2]
[380290202,1755637841440,-377.91897,0.00013219,2]
[380290204,1755637841449,-151.0,0.00013219,2]
[380290206,1755637841458,-151.0,0.00013219,2]
[380290208,1755637841467,-6714.570061,0.00013219,2]
[380290210,1755637841477,-275.829102,0.00013219,2]
[380290212,1755637841486,-377.91897,0.00013219,2]
[380290214,1755637841495,-275.829102,0.00013219,2]
[380290216,1755637841505,-151.0,0.00013219,2]
[380290218,1755637841514,-151.0,0.00013219,2]
[380290220,1755637841523,-377.91897,0.00013219,2]
[380290222,1755637841532,-151.0,0.00013219,2]
[380290224,1755637841542,-151.0,0.00013219,2]
[380290226,1755637841551,-153.31599,0.00013219,2]
[380290228,1755637841560,-151.0,0.00013219,2]
[380290229,1755637841569,-783.194687,0.00013219,2]
[380290231,1755637841579,-151.0,0.00013219,2]
[380290234,1755637841590,-151.0,0.00013219,2]
[380290236,1755637841601,-783.194687,0.00013219,2]
[380290238,1755637841611,-151.0,0.00013219,2]
[380290240,1755637841620,-783.194687,0.00013219,2]
[380290242,1755637841630,-288.015867,0.00013219,2]
[380290244,1755637841641,-783.194687,0.00013219,2]
[380290246,1755637841650,-151.0,0.00013219,2]
[380290248,1755637841667,-151.0,0.00013219,2]
[380290250,1755637841681,-151.0,0.00013219,2]
[380290252,1755637841691,-151.0,0.00013219,2]
[380290254,1755637841700,-419.804674,0.00013219,2]
[380290256,1755637841710,-419.804674,0.00013219,2]
[380290258,1755637841719,-419.804674,0.00013219,2]
[380290260,1755637841730,-151.0,0.00013219,2]
[380290262,1755637841741,-419.804674,0.00013219,2]
[380290264,1755637841751,-4463.62087,0.00013219,2]
[380290266,1755637841760,-151.0,0.00013219,2]
[380290268,1755637841770,-4463.62087,0.00013219,2]
[380290270,1755637841780,-4463.62087,0.00013219,2]
[380290272,1755637841791,-151.0,0.00013219,2]
[380290274,1755637841800,-4463.62087,0.00013219,2]
[380290276,1755637841811,-1260.04,0.00013224,2]
[380290278,1755637841826,-151.0,0.00013288,2]
[380290280,1755637841836,-151.0,0.00013288,2]
[380290282,1755637841845,-151.0,0.00013288,2]